Department Family,Entity,Date Paid,Expense Type,Expense Area,Supplier,Transaction Number,Amount (�),Supplier VAT Registration Number
BEIS,Met Office,2023-09-06,06 ACCOMMODATION,CHIEF FINANCIAL OFFICER,ABOVE THE REST COMMERCIAL CLEANING LTD,483270,41,166969348
BEIS,Met Office,2023-09-06,06 ACCOMMODATION,CHIEF FINANCIAL OFFICER,ABOVE THE REST COMMERCIAL CLEANING LTD,483268,565,166969348
BEIS,Met Office,2023-09-26,11 SERVICES,CHIEF FINANCIAL OFFICER,ACTIVE PEST MANAGEMENT,483851,86.1,791419116
BEIS,Met Office,2023-09-18,11 SERVICES,CHIEF FINANCIAL OFFICER,ALLSTAR BUSINESS SOLUTIONS LTD,483712,2937.42,747880191
BEIS,Met Office,2023-09-04,11 SERVICES,CHIEF FINANCIAL OFFICER,ALLSTAR BUSINESS SOLUTIONS LTD,483219,3129.58,747880191
BEIS,Met Office,2023-09-14,11 SERVICES,CHIEF FINANCIAL OFFICER,ANVIL MOBILE LIMITED,483604,126.2,981686175
BEIS,Met Office,2023-09-12,11 SERVICES,CHIEF FINANCIAL OFFICER,APPLE CENTRAL TAXIS,483539,318.5,449238720
BEIS,Met Office,2023-09-14,13 MISCELLANEOUS,CHIEF FINANCIAL OFFICER,ARTHUR J. GALLAGHER INSURANCE BROKERS LIMITED,483593,194575.92,GB484746209
BEIS,Met Office,2023-09-21,11 SERVICES,CHIEF FINANCIAL OFFICER,BABBLE CLOUD LIMITED,483746,1034.39,GB206270049
BEIS,Met Office,2023-09-12,13 MISCELLANEOUS,CHIEF FINANCIAL OFFICER,BANNER GROUP LIMITED,483513,21.53,GB391085740
BEIS,Met Office,2023-09-20,13 MISCELLANEOUS,CHIEF FINANCIAL OFFICER,BANNER GROUP LIMITED,483711,26.64,GB391085740
BEIS,Met Office,2023-09-12,13 MISCELLANEOUS,CHIEF FINANCIAL OFFICER,BANNER GROUP LIMITED,483514,29.11,GB391085740
BEIS,Met Office,2023-09-26,06 ACCOMMODATION,CHIEF FINANCIAL OFFICER,Belfast International Airport Ltd,483915,2832.91,617777601
BEIS,Met Office,2023-09-20,06 ACCOMMODATION,CHIEF FINANCIAL OFFICER,BESA PUBLICATIONS LIMITED,483784,9932.25,188 7521 61
BEIS,Met Office,2023-09-12,06 ACCOMMODATION,CHIEF FINANCIAL OFFICER,BIDVEST NOONAN UK LTD,483475,1,GB847176988
BEIS,Met Office,2023-09-12,06 ACCOMMODATION,CHIEF FINANCIAL OFFICER,BIDVEST NOONAN UK LTD,483476,1,GB847176988
BEIS,Met Office,2023-09-06,06 ACCOMMODATION,CHIEF FINANCIAL OFFICER,BIDVEST NOONAN UK LTD,483309,191.01,GB847176988
BEIS,Met Office,2023-09-12,06 ACCOMMODATION,CHIEF FINANCIAL OFFICER,BIDVEST NOONAN UK LTD,483476,500.58,GB847176988
BEIS,Met Office,2023-09-12,06 ACCOMMODATION,CHIEF FINANCIAL OFFICER,BIDVEST NOONAN UK LTD,483475,1110.97,GB847176988
BEIS,Met Office,2023-09-29,11 SERVICES,CHIEF FINANCIAL OFFICER,BT GLOBAL SERVICES,480298,-25614.13,245719348
BEIS,Met Office,2023-09-21,11 SERVICES,CHIEF FINANCIAL OFFICER,BT GLOBAL SERVICES,483718,773.4,245719348
BEIS,Met Office,2023-09-29,11 SERVICES,CHIEF FINANCIAL OFFICER,BT GLOBAL SERVICES,481142,5778.86,245719348
BEIS,Met Office,2023-09-29,11 SERVICES,CHIEF FINANCIAL OFFICER,BT GLOBAL SERVICES,482050,5778.86,245719348
BEIS,Met Office,2023-09-29,11 SERVICES,CHIEF FINANCIAL OFFICER,BT GLOBAL SERVICES,482963,5778.86,245719348
BEIS,Met Office,2023-09-06,11 SERVICES,CHIEF FINANCIAL OFFICER,BT plc,483174,6769.9,245719348
BEIS,Met Office,2023-09-20,06 ACCOMMODATION,CHIEF FINANCIAL OFFICER,BUSINESS SUPPORT CENTRE LTD,483685,1027.28,927365208
BEIS,Met Office,2023-09-01,06 ACCOMMODATION,CHIEF FINANCIAL OFFICER,CALOR GAS LIMITED,483156,355.43,207610984
BEIS,Met Office,2023-09-05,06 ACCOMMODATION,CHIEF FINANCIAL OFFICER,CARDIFF EXECUTIVE CENTRE LTD,483254,2470,864497378
BEIS,Met Office,2023-09-07,11 SERVICES,CHIEF FINANCIAL OFFICER,CBRE LTD,483325,3000,GB 736 3179 23
BEIS,Met Office,2023-09-21,06 ACCOMMODATION,CHIEF FINANCIAL OFFICER,CBRE MANAGED SERVICES LTD,483825,12278.63,853936883
BEIS,Met Office,2023-09-21,06 ACCOMMODATION,CHIEF FINANCIAL OFFICER,CBRE MANAGED SERVICES LTD,483826,28201.18,853936883
BEIS,Met Office,2023-09-21,06 ACCOMMODATION,CHIEF FINANCIAL OFFICER,CBRE MANAGED SERVICES LTD,483827,28639.66,853936883
BEIS,Met Office,2023-09-21,FIXTURE & FITTINGS,CHIEF FINANCIAL OFFICER,CBRE MANAGED SERVICES LTD,483828,33893.97,853936883
BEIS,Met Office,2023-09-06,06 ACCOMMODATION,CHIEF FINANCIAL OFFICER,CBRE MANAGED SERVICES LTD,483255,54308.94,853936883
BEIS,Met Office,2023-09-21,06 ACCOMMODATION,CHIEF FINANCIAL OFFICER,CBRE MANAGED SERVICES LTD,483829,86867.58,853936883
BEIS,Met Office,2023-09-21,06 ACCOMMODATION,CHIEF FINANCIAL OFFICER,CBRE MANAGED SERVICES LTD,483824,154281.85,853936883
BEIS,Met Office,2023-09-22,06 ACCOMMODATION,CHIEF FINANCIAL OFFICER,CELLNEX,483834,84.93,GB 843 8792 82
BEIS,Met Office,2023-09-20,08 SOFTWARE LICENCES,CHIEF FINANCIAL OFFICER,CEMAR,483709,850,915042161
BEIS,Met Office,2023-09-26,11 SERVICES,CHIEF FINANCIAL OFFICER,COMMERCIAL TRANSFER LTD,483916,853,891436990
BEIS,Met Office,2023-09-26,11 SERVICES,CHIEF FINANCIAL OFFICER,COMMERCIAL TRANSFER LTD,483917,1000,891436990
BEIS,Met Office,2023-09-28,06 ACCOMMODATION,CHIEF FINANCIAL OFFICER,COMMERCIAL TRANSFER LTD,483997,9150,891436990
BEIS,Met Office,2023-09-27,06 ACCOMMODATION,CHIEF FINANCIAL OFFICER,CORNWALL FLYING CLUB LTD,483992,20,313291390
BEIS,Met Office,2023-09-22,FIXTURE & FITTINGS,CHIEF FINANCIAL OFFICER,D&G OFFICE SERVICES LTD,483869,185,272997547
BEIS,Met Office,2023-09-06,06 ACCOMMODATION,CHIEF FINANCIAL OFFICER,D&G OFFICE SERVICES LTD,483271,575,272997547
BEIS,Met Office,2023-09-04,FIXTURE & FITTINGS,CHIEF FINANCIAL OFFICER,D&G OFFICE SERVICES LTD,483209,660.3,272997547
BEIS,Met Office,2023-09-22,FIXTURE & FITTINGS,CHIEF FINANCIAL OFFICER,D&G OFFICE SERVICES LTD,483869,1315.08,272997547
BEIS,Met Office,2023-09-22,FIXTURE & FITTINGS,CHIEF FINANCIAL OFFICER,D&G OFFICE SERVICES LTD,483869,1823.5,272997547
BEIS,Met Office,2023-09-05,13 MISCELLANEOUS,CHIEF FINANCIAL OFFICER,EAST ANGLIAN WATER COOLER CO,483207,56.9,676668178
BEIS,Met Office,2023-09-14,06 ACCOMMODATION,CHIEF FINANCIAL OFFICER,EDF ENERGY CUSTOMERS PLC,483616,1417.38,523041202
BEIS,Met Office,2023-09-06,06 ACCOMMODATION,CHIEF FINANCIAL OFFICER,EDF ENERGY CUSTOMERS PLC,483320,182410.93,523041202
BEIS,Met Office,2023-09-06,06 ACCOMMODATION,CHIEF FINANCIAL OFFICER,EDF ENERGY CUSTOMERS PLC,483317,189015.97,523041202
BEIS,Met Office,2023-09-06,06 ACCOMMODATION,CHIEF FINANCIAL OFFICER,EDF ENERGY CUSTOMERS PLC,483318,583604.15,523041202
BEIS,Met Office,2023-09-06,11 SERVICES,CHIEF FINANCIAL OFFICER,EIR,25168,58.09,4736919B
BEIS,Met Office,2023-09-25,11 SERVICES,CHIEF FINANCIAL OFFICER,ENTERPRISE RENT A CAR UK LTD,483892,482.84,215557314
BEIS,Met Office,2023-09-06,03 STAFF COSTS T&S,CHIEF FINANCIAL OFFICER,ENTERPRISE RENT A CAR UK LTD,483301,813.15,215557314
BEIS,Met Office,2023-09-12,11 SERVICES,CHIEF FINANCIAL OFFICER,ENTERPRISE RENT A CAR UK LTD,483532,2190.38,215557314
BEIS,Met Office,2023-09-25,11 SERVICES,CHIEF FINANCIAL OFFICER,ENTERPRISE RENT A CAR UK LTD,483895,3850.88,215557314
BEIS,Met Office,2023-09-18,11 SERVICES,CHIEF FINANCIAL OFFICER,ENTERPRISE RENT A CAR UK LTD,483706,3902.5,215557314
BEIS,Met Office,2023-09-15,06 ACCOMMODATION,CHIEF FINANCIAL OFFICER,Exeter City Council,479457,168960,142335594
BEIS,Met Office,2023-09-15,06 ACCOMMODATION,CHIEF FINANCIAL OFFICER,Exeter City Council,479458,168960,142335594
BEIS,Met Office,2023-09-25,06 ACCOMMODATION,CHIEF FINANCIAL OFFICER,Exeter City Council,479459,168960,142335594
BEIS,Met Office,2023-09-18,11 SERVICES,CHIEF FINANCIAL OFFICER,EXPONENTIAL-E,483623,321.49,GB798572653
BEIS,Met Office,2023-09-11,11 SERVICES,CHIEF FINANCIAL OFFICER,EXPONENTIAL-E,483303,2281.82,GB798572653
BEIS,Met Office,2023-09-27,13 MISCELLANEOUS,CHIEF FINANCIAL OFFICER,GALLAGHER RISK & REWARD LTD,483947,2575.62,-
BEIS,Met Office,2023-09-12,11 SERVICES,CHIEF FINANCIAL OFFICER,GAMMA BUSINESS COMMUNICATIONS LTD,483519,570.83,823820344
BEIS,Met Office,2023-09-13,11 SERVICES,CHIEF FINANCIAL OFFICER,GAMMA TELECOM LTD,483517,839.58,823820344
BEIS,Met Office,2023-09-13,11 SERVICES,CHIEF FINANCIAL OFFICER,GAMMA TELECOM LTD,483517,27956.65,823820344
BEIS,Met Office,2023-09-13,11 SERVICES,CHIEF FINANCIAL OFFICER,GB GROUP PLC,483508,144.85,539716218
BEIS,Met Office,2023-09-13,11 SERVICES,CHIEF FINANCIAL OFFICER,GB GROUP PLC,483509,613.3,539716218
BEIS,Met Office,2023-09-19,11 SERVICES,CHIEF FINANCIAL OFFICER,GIBRALTAR NYNEX COMMUNICATIONS LTD,481618,660,NOVAT
BEIS,Met Office,2023-09-19,11 SERVICES,CHIEF FINANCIAL OFFICER,GIBRALTAR NYNEX COMMUNICATIONS LTD,483617,660,NOVAT
BEIS,Met Office,2023-09-12,11 SERVICES,CHIEF FINANCIAL OFFICER,LANDMARK CHAMBERS,483535,2000,-
BEIS,Met Office,2023-09-04,11 SERVICES,CHIEF FINANCIAL OFFICER,LEASEDRIVE RENTAL MANAGEMENT LTD,483208,164.54,733546040
BEIS,Met Office,2023-09-05,11 SERVICES,CHIEF FINANCIAL OFFICER,LICENCE BUREAU LTD,483230,251.6,820219467
BEIS,Met Office,2023-09-07,11 SERVICES,CHIEF FINANCIAL OFFICER,MAWASEM LTD,482716,172646.58,197694731
BEIS,Met Office,2023-09-21,11 SERVICES,CHIEF FINANCIAL OFFICER,MAWASEM LTD,483406,195928.01,197694731
BEIS,Met Office,2023-09-07,11 SERVICES,CHIEF FINANCIAL OFFICER,MAWASEM LTD,480710,212040.72,197694731
BEIS,Met Office,2023-09-07,03 STAFF COSTS T&S,CHIEF FINANCIAL OFFICER,MAWASEM LTD,479989,214272.73,197694731
BEIS,Met Office,2023-09-07,11 SERVICES,CHIEF FINANCIAL OFFICER,MAWASEM LTD,481747,223197.53,197694731
BEIS,Met Office,2023-09-12,06 ACCOMMODATION,CHIEF FINANCIAL OFFICER,Mid Sussex District Council,473849,-4990,-
BEIS,Met Office,2023-09-05,06 ACCOMMODATION,CHIEF FINANCIAL OFFICER,Mitie Landscapes Ltd,483233,950,GB 416 706 654
BEIS,Met Office,2023-09-05,06 ACCOMMODATION,CHIEF FINANCIAL OFFICER,Mitie Landscapes Ltd,483232,11575.01,GB 416 706 654
BEIS,Met Office,2023-09-11,11 SERVICES,CHIEF FINANCIAL OFFICER,MITIE SECURITY LTD,483355,1,416706654
BEIS,Met Office,2023-09-11,11 SERVICES,CHIEF FINANCIAL OFFICER,MITIE SECURITY LTD,483399,1,416706654
BEIS,Met Office,2023-09-11,11 SERVICES,CHIEF FINANCIAL OFFICER,MITIE SECURITY LTD,483399,57,416706654
BEIS,Met Office,2023-09-11,11 SERVICES,CHIEF FINANCIAL OFFICER,MITIE SECURITY LTD,483355,1387.88,416706654
BEIS,Met Office,2023-09-11,11 SERVICES,CHIEF FINANCIAL OFFICER,MITIE SECURITY LTD,483400,1551.5,416706654
BEIS,Met Office,2023-09-05,11 SERVICES,CHIEF FINANCIAL OFFICER,Morton Fraser LLP,483029,322.5,269129336
BEIS,Met Office,2023-09-06,06 ACCOMMODATION,CHIEF FINANCIAL OFFICER,MOUNT CHARLES GROUP LTD,483269,496.27,517116274
BEIS,Met Office,2023-09-01,06 ACCOMMODATION,CHIEF FINANCIAL OFFICER,NEVIS RANGE MOUNTAIN EXPERIENCE,483048,531.51,GB481585224
BEIS,Met Office,2023-09-20,13 MISCELLANEOUS,CHIEF FINANCIAL OFFICER,NORSCOTT VENDING SERVICES LTD,483747,83.4,751402071
BEIS,Met Office,2023-09-05,13 MISCELLANEOUS,CHIEF FINANCIAL OFFICER,NORSCOTT VENDING SERVICES LTD,483223,85,751402071
BEIS,Met Office,2023-09-20,06 ACCOMMODATION,CHIEF FINANCIAL OFFICER,Northern Ireland Water,483755,5200,898746537
BEIS,Met Office,2023-09-06,06 ACCOMMODATION,CHIEF FINANCIAL OFFICER,OCS Group UK Limited,483265,137652.61,GB238034379
BEIS,Met Office,2023-09-06,11 SERVICES,CHIEF FINANCIAL OFFICER,OPEN TEXT UK LTD,483264,100,837871308
BEIS,Met Office,2023-09-26,06 ACCOMMODATION,CHIEF FINANCIAL OFFICER,OUR LADY OF BETHLEHEM ABBEY,483902,1000,-
BEIS,Met Office,2023-09-26,06 ACCOMMODATION,CHIEF FINANCIAL OFFICER,PAUL BAIRD,483905,1846.37,251954452
BEIS,Met Office,2023-09-07,13 MISCELLANEOUS,CHIEF FINANCIAL OFFICER,POSTURITE (UK) LTD,482200,37.19,583565114
BEIS,Met Office,2023-09-07,13 MISCELLANEOUS,CHIEF FINANCIAL OFFICER,POSTURITE (UK) LTD,482904,47.14,583565114
BEIS,Met Office,2023-09-06,11 SERVICES,CHIEF FINANCIAL OFFICER,POSTURITE (UK) LTD,482459,50,583565114
BEIS,Met Office,2023-09-06,11 SERVICES,CHIEF FINANCIAL OFFICER,POSTURITE (UK) LTD,482460,50,583565114
BEIS,Met Office,2023-09-06,11 SERVICES,CHIEF FINANCIAL OFFICER,POSTURITE (UK) LTD,482615,76.88,583565114
BEIS,Met Office,2023-09-07,13 MISCELLANEOUS,CHIEF FINANCIAL OFFICER,POSTURITE (UK) LTD,482905,155.07,583565114
BEIS,Met Office,2023-09-06,11 SERVICES,CHIEF FINANCIAL OFFICER,POSTURITE (UK) LTD,483321,351.33,583565114
BEIS,Met Office,2023-09-07,13 MISCELLANEOUS,CHIEF FINANCIAL OFFICER,POSTURITE (UK) LTD,482004,791.74,583565114
BEIS,Met Office,2023-09-20,06 ACCOMMODATION,CHIEF FINANCIAL OFFICER,POWER NI ENERGY LTD,483708,117.4,617518142
BEIS,Met Office,2023-09-06,06 ACCOMMODATION,CHIEF FINANCIAL OFFICER,POWER NI ENERGY LTD,483302,750.35,617518142
BEIS,Met Office,2023-09-26,06 ACCOMMODATION,CHIEF FINANCIAL OFFICER,REDACTED � PERSONAL DATA,483901,200,-
BEIS,Met Office,2023-09-20,06 ACCOMMODATION,CHIEF FINANCIAL OFFICER,REDACTED � PERSONAL DATA,483272,520,-
BEIS,Met Office,2023-09-05,11 SERVICES,CHIEF FINANCIAL OFFICER,REDACTED � PERSONAL DATA,483196,600,-
BEIS,Met Office,2023-09-07,11 SERVICES,CHIEF FINANCIAL OFFICER,REDACTED � PERSONAL DATA,483340,750,-
BEIS,Met Office,2023-09-26,06 ACCOMMODATION,CHIEF FINANCIAL OFFICER,REDACTED � PERSONAL DATA,483903,1393.3,-
BEIS,Met Office,2023-09-14,06 ACCOMMODATION,CHIEF FINANCIAL OFFICER,REDACTED � PERSONAL DATA,483534,4185.25,001874305
BEIS,Met Office,2023-09-26,06 ACCOMMODATION,CHIEF FINANCIAL OFFICER,REDACTED � PERSONAL DATA,483904,6000,-
BEIS,Met Office,2023-09-12,06 ACCOMMODATION,CHIEF FINANCIAL OFFICER,RIVER RIDGE,483511,133.12,176286083
BEIS,Met Office,2023-09-01,06 ACCOMMODATION,CHIEF FINANCIAL OFFICER,SADDLES & PADDLES EXETER LTD,483157,95.62,152264528
BEIS,Met Office,2023-09-13,06 ACCOMMODATION,CHIEF FINANCIAL OFFICER,SAFESTORE LTD,483521,3678.75,722887607
BEIS,Met Office,2023-09-15,06 ACCOMMODATION,CHIEF FINANCIAL OFFICER,Scottish Government,483053,23239,888842551
BEIS,Met Office,2023-09-26,06 ACCOMMODATION,CHIEF FINANCIAL OFFICER,Scottish Natural Heritage,483900,200,553740540
BEIS,Met Office,2023-09-25,06 ACCOMMODATION,CHIEF FINANCIAL OFFICER,SHARED ACCESS LTD,483890,7759.29,920672730
BEIS,Met Office,2023-09-14,06 ACCOMMODATION,CHIEF FINANCIAL OFFICER,SHETLAND CLEANING SERVICES,483620,831.13,430028404
BEIS,Met Office,2023-09-14,06 ACCOMMODATION,CHIEF FINANCIAL OFFICER,SIGNS EXPRESS (EXETER),483587,138.2,631397439
BEIS,Met Office,2023-09-20,06 ACCOMMODATION,CHIEF FINANCIAL OFFICER,South West Water Ltd,483707,946.48,236873674
BEIS,Met Office,2023-09-11,06 ACCOMMODATION,CHIEF FINANCIAL OFFICER,South West Water Ltd,483426,4223.11,236873674
BEIS,Met Office,2023-09-20,06 ACCOMMODATION,CHIEF FINANCIAL OFFICER,South West Water Ltd,483725,4347.85,236873674
BEIS,Met Office,2023-09-28,06 ACCOMMODATION,CHIEF FINANCIAL OFFICER,South West Water Ltd,483993,4561.21,236873674
BEIS,Met Office,2023-09-01,06 ACCOMMODATION,CHIEF FINANCIAL OFFICER,St. Modwen Properties Limited,483159,112.5,005489575
BEIS,Met Office,2023-09-06,06 ACCOMMODATION,CHIEF FINANCIAL OFFICER,St. Modwen Properties Limited,483160,750,005489575
BEIS,Met Office,2023-09-11,11 SERVICES,CHIEF FINANCIAL OFFICER,SURE SOUTH ATLANTIC LTD,483430,2169.59,NOVATREG
BEIS,Met Office,2023-09-12,11 SERVICES,CHIEF FINANCIAL OFFICER,SURE SOUTH ATLANTIC LTD,483470,4801,-
BEIS,Met Office,2023-09-12,11 SERVICES,CHIEF FINANCIAL OFFICER,SURE SOUTH ATLANTIC LTD,483471,6478,-
BEIS,Met Office,2023-09-18,11 SERVICES,CHIEF FINANCIAL OFFICER,SURE SOUTH ATLANTIC LTD (ST HELENA),483661,1285,30005
BEIS,Met Office,2023-09-27,11 SERVICES,CHIEF FINANCIAL OFFICER,SWISSCOM (SCHWEIZ) AG,483435,98.81,-
BEIS,Met Office,2023-09-26,06 ACCOMMODATION,CHIEF FINANCIAL OFFICER,TATTON ESTATE C/O FISHER GERMAN LLP,483939,1280,185 6649 58
BEIS,Met Office,2023-09-12,11 SERVICES,CHIEF FINANCIAL OFFICER,TELEFONICA O2 UK LIMITED,483515,1,778603785
BEIS,Met Office,2023-09-12,11 SERVICES,CHIEF FINANCIAL OFFICER,TELEFONICA O2 UK LIMITED,483516,1,778603785
BEIS,Met Office,2023-09-12,11 SERVICES,CHIEF FINANCIAL OFFICER,TELEFONICA O2 UK LIMITED,483515,56.4,778603785
BEIS,Met Office,2023-09-25,11 SERVICES,CHIEF FINANCIAL OFFICER,TELEFONICA O2 UK LIMITED,483848,57.4,778603785
BEIS,Met Office,2023-09-12,11 SERVICES,CHIEF FINANCIAL OFFICER,TELEFONICA O2 UK LIMITED,483516,3368.14,778603785
BEIS,Met Office,2023-09-20,11 SERVICES,CHIEF FINANCIAL OFFICER,TELIA FINLAND OYJ,25190,190.08,FI14756079
BEIS,Met Office,2023-09-05,06 ACCOMMODATION,CHIEF FINANCIAL OFFICER,THE NATIONAL TRUST FOR SCOTLAND,483267,600,429459027
BEIS,Met Office,2023-09-29,11 SERVICES,CHIEF FINANCIAL OFFICER,THE STRENGTHS PEOPLE LTD,484039,3755,206868488
BEIS,Met Office,2023-09-05,06 ACCOMMODATION,CHIEF FINANCIAL OFFICER,TOP RANK CLEANING SERVICES LTD,483231,1110.56,-
BEIS,Met Office,2023-09-18,06 ACCOMMODATION,CHIEF FINANCIAL OFFICER,TOTAL GAS & POWER LIMITED,483676,734.38,689638949
BEIS,Met Office,2023-09-18,06 ACCOMMODATION,CHIEF FINANCIAL OFFICER,TOTAL GAS & POWER LIMITED,483674,11197.37,689638949
BEIS,Met Office,2023-09-07,06 ACCOMMODATION,CHIEF FINANCIAL OFFICER,UNIVERSAL CLEANING SERVICES,483346,207.15,-
BEIS,Met Office,2023-09-27,06 ACCOMMODATION,CHIEF FINANCIAL OFFICER,University Of Birmingham,483015,120,729856187
BEIS,Met Office,2023-09-27,06 ACCOMMODATION,CHIEF FINANCIAL OFFICER,VICKERY HOLMAN,483948,4365.62,943875678
BEIS,Met Office,2023-09-06,11 SERVICES,CHIEF FINANCIAL OFFICER,Vodafone Limited,483256,15339.36,569953277
BEIS,Met Office,2023-09-06,06 ACCOMMODATION,CHIEF FINANCIAL OFFICER,WALMSLEY RESIDENTIAL LETTINGS LIMITED,483175,7919.82,200012659
BEIS,Met Office,2023-09-22,06 ACCOMMODATION,CHIEF FINANCIAL OFFICER,Wessex Water Services Ltd,483816,500,-
BEIS,Met Office,2023-09-28,11 SERVICES,CHIEF FINANCIAL OFFICER,WILDLIFE TRUSTS,484001,2414,694 4739 81
BEIS,Met Office,2023-09-06,11 SERVICES,CHIEF FINANCIAL OFFICER,WOMBLE BOND DICKINSON (UK) LLP,483179,1456,GB123393627
BEIS,Met Office,2023-09-06,11 SERVICES,CHIEF FINANCIAL OFFICER,WOMBLE BOND DICKINSON (UK) LLP,483178,16575,GB123393627
BEIS,Met Office,2023-09-27,11 SERVICES,CHIEF FINANCIAL OFFICER,WPC SOFTWARE LIMITED,483052,12000,709890400
BEIS,Met Office,2023-09-27,11 SERVICES,CHIEF FINANCIAL OFFICER,WPC SOFTWARE LIMITED,483052,22000,709890400
BEIS,Met Office,2023-09-07,11 SERVICES,CHIEF FINANCIAL OFFICER,WT CONSULTANCY (SW) LTD,482077,-7175,223 4662 25
BEIS,Met Office,2023-09-07,11 SERVICES,CHIEF FINANCIAL OFFICER,WT CONSULTANCY (SW) LTD,483222,3500,223 4662 25
BEIS,Met Office,2023-09-07,11 SERVICES,CHIEF FINANCIAL OFFICER,WT CONSULTANCY (SW) LTD,482347,13600,223 4662 25
BEIS,Met Office,2023-09-07,11 SERVICES,CHIEF FINANCIAL OFFICER,WT CONSULTANCY (SW) LTD,483221,13600,223 4662 25
BEIS,Met Office,2023-09-19,06 ACCOMMODATION,CHIEF FINANCIAL OFFICER,WYCHAVON DISTRICT COUNCIL,483719,1197.62,-
BEIS,Met Office,2023-09-19,06 ACCOMMODATION,CHIEF FINANCIAL OFFICER,XEIAD,483679,6583.94,811321091
BEIS,Met Office,2023-09-05,06 ACCOMMODATION,CHIEF FINANCIAL OFFICER,XEIAD,483161,64027.61,811321091
BEIS,Met Office,2023-09-14,11 SERVICES,MARKETS,ACCELERATION EMARKETING,483510,5214.03,848940776
BEIS,Met Office,2023-09-05,11 SERVICES,MARKETS,ADOPSTAR,483224,1325,115036848
BEIS,Met Office,2023-09-07,12 INTERNATIONAL,MARKETS,APPLIED SATELLITE TECHNOLOGY SYSTEMS LTD,483397,33.01,720108683
BEIS,Met Office,2023-09-18,11 SERVICES,MARKETS,BJSS LIMITED,483610,562.5,613295452
BEIS,Met Office,2023-09-25,11 SERVICES,MARKETS,BMG RESEARCH LTD,479604,-8695,580 6606 32
BEIS,Met Office,2023-09-25,11 SERVICES,MARKETS,BMG RESEARCH LTD,483912,8695,580 6606 32
BEIS,Met Office,2023-09-07,12 INTERNATIONAL,MARKETS,CROWN AGENTS BANK,483036,13230.16,-
BEIS,Met Office,2023-09-19,11 SERVICES,MARKETS,DJS RESEARCH LIMITED,483720,18500,775718779
BEIS,Met Office,2023-09-11,06 ACCOMMODATION,MARKETS,DRIGG & CARLETON PARISH COUNCIL,483424,5,-
BEIS,Met Office,2023-09-11,06 ACCOMMODATION,MARKETS,DRIGG & CARLETON PARISH COUNCIL,483424,175,-
BEIS,Met Office,2023-09-26,07 EQUIPMENT,MARKETS,ENVIRO TECHNOLOGY SERVICES LTD,483867,2050,GB 448 4321 46
BEIS,Met Office,2023-09-26,07 EQUIPMENT,MARKETS,ENVIRO TECHNOLOGY SERVICES LTD,483867,10169.7,GB 448 4321 46
BEIS,Met Office,2023-09-26,07 EQUIPMENT,MARKETS,ENVIRO TECHNOLOGY SERVICES LTD,483867,12759.5,GB 448 4321 46
BEIS,Met Office,2023-09-06,11 SERVICES,MARKETS,FLOODTAGS B.V,483042,4178,-
BEIS,Met Office,2023-09-06,11 SERVICES,MARKETS,FLOODTAGS B.V,483042,4178,-
BEIS,Met Office,2023-09-06,08 SOFTWARE LICENCES,MARKETS,FLOODTAGS B.V,483042,21500,-
BEIS,Met Office,2023-09-06,11 SERVICES,MARKETS,"IBL SOFTWARE ENGINEERING, SPOL S.R.O.",24719,10167.07,SK2020241883
BEIS,Met Office,2023-09-12,12 INTERNATIONAL,MARKETS,IDEMS INTERNATIONAL COMMUNITY INTEREST CO,483512,12886.65,-
BEIS,Met Office,2023-09-11,11 SERVICES,MARKETS,INMARSAT SOLUTIONS (CANADA) INC,483259,1620.68,766144223
BEIS,Met Office,2023-09-20,11 SERVICES,MARKETS,"INTELLOVATIONS, LLC",11168,4198.84,-
BEIS,Met Office,2023-09-06,11 SERVICES,MARKETS,"INTELLOVATIONS, LLC",11194,5945.2,-
BEIS,Met Office,2023-09-27,11 SERVICES,MARKETS,JCT Ltd,483697,3088,714 3761 44
BEIS,Met Office,2023-09-06,11 SERVICES,MARKETS,LHR BUSINESS SUPPORT CENTRE LTD,483314,150,927365404
BEIS,Met Office,2023-09-14,11 SERVICES,MARKETS,LHR BUSINESS SUPPORT CENTRE LTD,483536,3484.58,927365404
BEIS,Met Office,2023-09-27,12 INTERNATIONAL,MARKETS,MACITECHSY SOLUTIONS,483833,740,-
BEIS,Met Office,2023-09-06,11 SERVICES,MARKETS,National Oceanography Centre,483326,20384.68,GB 338 5487 64
BEIS,Met Office,2023-09-13,11 SERVICES,MARKETS,NSSL GLOBAL LTD,11179,43.33,725151948
BEIS,Met Office,2023-09-04,11 SERVICES,MARKETS,OSBORNE CLARKE LLP,483038,11000,GB138187353
BEIS,Met Office,2023-09-13,12 INTERNATIONAL,MARKETS,REDACTED � PERSONAL DATA,11193,71.34,-
BEIS,Met Office,2023-09-13,12 INTERNATIONAL,MARKETS,REDACTED � PERSONAL DATA,11193,2893.33,-
BEIS,Met Office,2023-09-18,03 STAFF COSTS T&S,MARKETS,SOLOMON & COMPANY (ST HELENA) PLC,483694,335.5,-
BEIS,Met Office,2023-09-26,11 SERVICES,MARKETS,SPOKE (INTERACTIVE) LTD,483878,700,840156451
BEIS,Met Office,2023-09-14,11 SERVICES,MARKETS,SPOKE (INTERACTIVE) LTD,483345,770,840156451
BEIS,Met Office,2023-09-18,06 ACCOMMODATION,MARKETS,Trinity House,483677,502.65,243120414
BEIS,Met Office,2023-09-19,11 SERVICES,MARKETS,ULTRA ELECTRONICS LTD NUCLEAR CONTROL SYSTEMS,480483,4926.81,123340754
BEIS,Met Office,2023-09-07,13 MISCELLANEOUS,MARKETS,University Of Bristol,483365,3287.44,991261800
BEIS,Met Office,2023-09-14,11 SERVICES,MARKETS,WORLDPAY (UK) LTD,483621,607.29,991280207
BEIS,Met Office,2023-09-20,11 SERVICES,MARKETS,WORLDPAY LTD,483260,30.45,991280207
BEIS,Met Office,2023-09-11,07 EQUIPMENT,OFFICE OF THE CEO,COMPUTACENTER (UK) LTD,483431,305.39,490334648
BEIS,Met Office,2023-09-11,07 EQUIPMENT,OFFICE OF THE CEO,COMPUTACENTER (UK) LTD,483431,305.59,490334648
BEIS,Met Office,2023-09-11,07 EQUIPMENT,OFFICE OF THE CEO,COMPUTACENTER (UK) LTD,483431,305.69,490334648
BEIS,Met Office,2023-09-11,07 EQUIPMENT,OFFICE OF THE CEO,COMPUTACENTER (UK) LTD,483392,1434.32,490334648
BEIS,Met Office,2023-09-11,07 EQUIPMENT,OFFICE OF THE CEO,COMPUTACENTER (UK) LTD,483392,1434.42,490334648
BEIS,Met Office,2023-09-11,07 EQUIPMENT,OFFICE OF THE CEO,COMPUTACENTER (UK) LTD,483392,1434.62,490334648
BEIS,Met Office,2023-09-01,13 MISCELLANEOUS,OFFICE OF THE CEO,THOMSON REUTERS (PROFESSIONAL) UK LTD,481028,-5708.17,900548743
BEIS,Met Office,2023-09-07,CYCLESCHEME,OTHER,EDENRED UK (CYCLESCHEME),483359,8042.87,649 503 520
BEIS,Met Office,2023-09-21,TRADE CREDITORS,OTHER,NATWEST COMMERCIAL CARDS DIVISION,483782,147789.23,N/A
BEIS,Met Office,2023-09-26,11 SERVICES,PEOPLE,ACTIVE LEARNING TEAM LTD,483943,1772.7,-
BEIS,Met Office,2023-09-26,11 SERVICES,PEOPLE,ACTIVE LEARNING TEAM LTD,483942,2100,-
BEIS,Met Office,2023-09-05,08 SOFTWARE LICENCES,PEOPLE,CATALYST IT,483213,2270.82,978169262
BEIS,Met Office,2023-09-18,08 SOFTWARE LICENCES,PEOPLE,CIPHR,483657,1,242661124
BEIS,Met Office,2023-09-18,11 SERVICES,PEOPLE,CIPHR,483660,1,242661124
BEIS,Met Office,2023-09-18,11 SERVICES,PEOPLE,CIPHR,483657,8749,242661124
BEIS,Met Office,2023-09-18,08 SOFTWARE LICENCES,PEOPLE,CIPHR,483660,51526.5,242661124
BEIS,Met Office,2023-09-13,11 SERVICES,PEOPLE,CIVICA UK LIMITED,483537,7503.5,391171065
BEIS,Met Office,2023-09-11,07 EQUIPMENT,PEOPLE,COMPUTACENTER (UK) LTD,483431,305.59,490334648
BEIS,Met Office,2023-09-11,07 EQUIPMENT,PEOPLE,COMPUTACENTER (UK) LTD,483392,1434.42,490334648
BEIS,Met Office,2023-09-05,13 MISCELLANEOUS,PEOPLE,EDENRED - CHILDCARE VOUCHERS,483236,9032.5,649 503 520
BEIS,Met Office,2023-09-05,13 MISCELLANEOUS,PEOPLE,EDENRED I&M (IRS VOUCHERS),483229,26968.8,649 503 520
BEIS,Met Office,2023-09-07,11 SERVICES,PEOPLE,HEALTH ASSURED LIMITED,483315,1120,927 5242 17
BEIS,Met Office,2023-09-11,04 CONTRACTORS,PEOPLE,MATRIX SCM LIMITED,483436,190823.84,249 5734 68
BEIS,Met Office,2023-09-18,04 CONTRACTORS,PEOPLE,MATRIX SCM LIMITED,483659,211361.81,249 5734 68
BEIS,Met Office,2023-09-04,04 CONTRACTORS,PEOPLE,MATRIX SCM LIMITED,483164,230438.23,249 5734 68
BEIS,Met Office,2023-09-26,11 SERVICES,PEOPLE,MOMENTUM INCORPORATED,483835,6660,598958541
BEIS,Met Office,2023-09-01,11 SERVICES,PEOPLE,REDACTED � PERSONAL DATA,483172,825,143043312
BEIS,Met Office,2023-09-18,11 SERVICES,PEOPLE,REDACTED � PERSONAL DATA,483688,825,143043312
BEIS,Met Office,2023-09-22,11 SERVICES,PEOPLE,REDACTED � PERSONAL DATA,483689,2869,143043312
BEIS,Met Office,2023-09-15,11 SERVICES,PEOPLE,REDACTED � PERSONAL DATA,477600,3500,143043312
BEIS,Met Office,2023-09-22,11 SERVICES,PEOPLE,REDACTED � PERSONAL DATA,483690,8894,143043312
BEIS,Met Office,2023-09-18,11 SERVICES,PEOPLE,RESTORE RECORDS MANAGEMENT,483477,13.89,843 863011
BEIS,Met Office,2023-09-14,11 SERVICES,PEOPLE,RESULTS CATALYSTS LTD,483613,1200,811 9181 42
BEIS,Met Office,2023-09-26,11 SERVICES,PEOPLE,SKILLTEC LIMITED,479946,1295,909833105
BEIS,Met Office,2023-09-19,11 SERVICES,PEOPLE,SKILLTEC LIMITED,478487,4750,909833105
BEIS,Met Office,2023-09-04,11 SERVICES,PEOPLE,TOTAL CONFLICT MANAGEMENT LTD,483162,1975,786749261
BEIS,Met Office,2023-09-27,11 SERVICES,PEOPLE,TP HEALTH LTD,483940,1105,883064608
BEIS,Met Office,2023-09-01,11 SERVICES,PEOPLE,TP HEALTH LTD,483150,1150,883064608
BEIS,Met Office,2023-09-11,11 SERVICES,PEOPLE,TP HEALTH LTD,483394,1970,883064608
BEIS,Met Office,2023-09-05,11 SERVICES,PEOPLE,TP HEALTH LTD,483151,4056,883064608
BEIS,Met Office,2023-09-26,11 SERVICES,PEOPLE,VIMA CONSULTING LTD,483656,335,231412752
BEIS,Met Office,2023-09-26,11 SERVICES,PEOPLE,VIMA CONSULTING LTD,481578,11095,231412752
BEIS,Met Office,2023-09-14,11 SERVICES,PEOPLE,WITH ALACRITY LTD,483520,1750,-
BEIS,Met Office,2023-09-11,13 MISCELLANEOUS,PEOPLE,YOTI LTD,483391,36,GB199947617
BEIS,Met Office,2023-09-26,11 SERVICES,PROGRAMMES,BAE SYSTEMS APPLIED INTELLIGENCE LIMITED,483840,922.57,GB641407169
BEIS,Met Office,2023-09-26,11 SERVICES,PROGRAMMES,BAE SYSTEMS APPLIED INTELLIGENCE LIMITED,483844,7260,GB641407169
BEIS,Met Office,2023-09-26,11 SERVICES,PROGRAMMES,BAE SYSTEMS APPLIED INTELLIGENCE LIMITED,483843,9884,GB641407169
BEIS,Met Office,2023-09-26,11 SERVICES,PROGRAMMES,BAE SYSTEMS APPLIED INTELLIGENCE LIMITED,483845,10318,GB641407169
BEIS,Met Office,2023-09-26,11 SERVICES,PROGRAMMES,BAE SYSTEMS APPLIED INTELLIGENCE LIMITED,483842,17822,GB641407169
BEIS,Met Office,2023-09-26,11 SERVICES,PROGRAMMES,BAE SYSTEMS APPLIED INTELLIGENCE LIMITED,483846,17822,GB641407169
BEIS,Met Office,2023-09-15,11 SERVICES,PROGRAMMES,BJSS LIMITED,483612,23750,613295452
BEIS,Met Office,2023-09-15,11 SERVICES,PROGRAMMES,BJSS LIMITED,483608,30950,613295452
BEIS,Met Office,2023-09-18,11 SERVICES,PROGRAMMES,BJSS LIMITED,483605,82887.5,613295452
BEIS,Met Office,2023-09-15,11 SERVICES,PROGRAMMES,BJSS LIMITED,483607,88611.25,613295452
BEIS,Met Office,2023-09-15,11 SERVICES,PROGRAMMES,BJSS LIMITED,483609,96350,613295452
BEIS,Met Office,2023-09-26,08 SOFTWARE LICENCES,PROGRAMMES,BYTES SOFTWARE SERVICES LTD,483687,50764.35,823818226
BEIS,Met Office,2023-09-11,11 SERVICES,PROGRAMMES,Cgi It Uk Limited,483362,29208,232615194
BEIS,Met Office,2023-09-11,11 SERVICES,PROGRAMMES,Cgi It Uk Limited,483361,40143,232615194
BEIS,Met Office,2023-09-11,11 SERVICES,PROGRAMMES,Cgi It Uk Limited,483363,109282,232615194
BEIS,Met Office,2023-09-19,11 SERVICES,PROGRAMMES,Dstl,483750,779.95,888805166
BEIS,Met Office,2023-09-19,11 SERVICES,PROGRAMMES,Dstl,483749,1541.15,888805166
BEIS,Met Office,2023-09-20,11 SERVICES,PROGRAMMES,ESCOTT HUNT LTD,483748,237.5,815727127
BEIS,Met Office,2023-09-20,11 SERVICES,PROGRAMMES,FLIGHTRADAR24,482982,5200,-
BEIS,Met Office,2023-09-20,11 SERVICES,PROGRAMMES,FLIGHTRADAR24,482982,23393.58,-
BEIS,Met Office,2023-09-27,11 SERVICES,PROGRAMMES,FUNDACAO ARTHUR BERNARDES - FUNARBE,483567,437.5,-
BEIS,Met Office,2023-09-06,11 SERVICES,PROGRAMMES,G4S FIRE & SECURITY SYSTEMS (UK),483212,3567,238560256
BEIS,Met Office,2023-09-07,11 SERVICES,PROGRAMMES,HOGAN LOVELLS INTERNATIONAL LLP,483396,555.1,GB123371543
BEIS,Met Office,2023-09-29,11 SERVICES,PROGRAMMES,Hr Wallingford Ltd,484011,70000,570039752
BEIS,Met Office,2023-09-15,11 SERVICES,PROGRAMMES,LAFOSSE ASSOCIATES,483603,26586,GB 360026537
BEIS,Met Office,2023-09-28,11 SERVICES,PROGRAMMES,LAFOSSE ASSOCIATES,484006,32408.4,GB 360026537
BEIS,Met Office,2023-09-25,11 SERVICES,PROGRAMMES,NOC INNOVATIONS LIMITED,483898,166644,-
BEIS,Met Office,2023-09-12,PLANT AND EQUIPMENT,PROGRAMMES,PZ&W LTD,483538,69393,684 6795 68
BEIS,Met Office,2023-09-25,11 SERVICES,PROGRAMMES,QA LTD,482826,3075,864455303
BEIS,Met Office,2023-09-11,07 EQUIPMENT,PROGRAMMES,QUASAR MICROWAVE TECHNOLOGY LTD,483322,1411.5,209385203
BEIS,Met Office,2023-09-07,11 SERVICES,PROGRAMMES,RAINMAKER SOLUTIONS LTD,483308,612.26,-
BEIS,Met Office,2023-09-07,11 SERVICES,PROGRAMMES,RAINMAKER SOLUTIONS LTD,483308,30000,-
BEIS,Met Office,2023-09-11,11 SERVICES,PROGRAMMES,ROWE IT LTD,483341,5794.13,924964394
BEIS,Met Office,2023-09-11,11 SERVICES,PROGRAMMES,ROWE IT LTD,483341,13519.63,924964394
BEIS,Met Office,2023-09-07,11 SERVICES,PROGRAMMES,ROWE IT LTD,483364,14764.59,924964394
BEIS,Met Office,2023-09-11,11 SERVICES,PROGRAMMES,ROWE IT LTD,483341,19313.74,924964394
BEIS,Met Office,2023-09-11,11 SERVICES,PROGRAMMES,ROWE IT LTD,483341,44421.65,924964394
BEIS,Met Office,2023-09-11,11 SERVICES,PROGRAMMES,ROWE IT LTD,483341,54078.53,924964394
BEIS,Met Office,2023-09-11,11 SERVICES,PROGRAMMES,ROWE IT LTD,483341,56009.91,924964394
BEIS,Met Office,2023-09-11,11 SERVICES,PROGRAMMES,ROWE IT LTD,483432,102522.5,924964394
BEIS,Met Office,2023-09-06,11 SERVICES,PROGRAMMES,SCIENCE & TECHNOLOGY FACILITIES COUNCIL,483205,80000,287461957
BEIS,Met Office,2023-09-04,11 SERVICES,PROGRAMMES,SERVICENOW UK LTD.,483171,972,-
BEIS,Met Office,2023-09-26,11 SERVICES,PROGRAMMES,University Of Exeter,483864,2105.51,142047795
BEIS,Met Office,2023-09-25,11 SERVICES,PROGRAMMES,University Of Exeter,483757,15666.94,142047795
BEIS,Met Office,2023-09-25,11 SERVICES,PROGRAMMES,University Of Leeds,483879,10106.23,613451470
BEIS,Met Office,2023-09-11,11 SERVICES,PROGRAMMES,University Of Reading,483342,1000,200012659
BEIS,Met Office,2023-09-26,11 SERVICES,PROGRAMMES,VIMA CONSULTING LTD,481590,1595,231412752
BEIS,Met Office,2023-09-11,07 EQUIPMENT,SCIENCE,COMPUTACENTER (UK) LTD,483431,305.69,490334648
BEIS,Met Office,2023-09-11,07 EQUIPMENT,SCIENCE,COMPUTACENTER (UK) LTD,483392,1434.32,490334648
BEIS,Met Office,2023-09-07,13 MISCELLANEOUS,SCIENCE,DESIGNAMITE LTD,483163,250,817819989
BEIS,Met Office,2023-09-20,11 SERVICES,SCIENCE,ESCOTT HUNT LTD,483748,237.5,815727127
BEIS,Met Office,2023-09-07,11 SERVICES,SCIENCE,Esri (Uk) Ltd,483266,3857.33,787430791
BEIS,Met Office,2023-09-07,07 EQUIPMENT,SCIENCE,INSITE PORTABLE ACCOMMODATION,483405,425,122581045
BEIS,Met Office,2023-09-07,07 EQUIPMENT,SCIENCE,INSITE PORTABLE ACCOMMODATION,483405,997.5,122581045
BEIS,Met Office,2023-09-21,13 MISCELLANEOUS,SCIENCE,University Of Exeter,483756,1000,142047795
BEIS,Met Office,2023-09-28,11 SERVICES,SCIENCE,University Of Leeds,484010,83333.25,613451470
BEIS,Met Office,2023-09-12,13 MISCELLANEOUS,SCIENCE,University Of Oxford,483533,333.34,125506730
BEIS,Met Office,2023-09-07,13 MISCELLANEOUS,SCIENCE,University Of Reading,483323,333.34,200012659
BEIS,Met Office,2023-09-07,13 MISCELLANEOUS,SCIENCE,University Of Reading,483343,1000,200012659
BEIS,Met Office,2023-09-07,13 MISCELLANEOUS,SCIENCE,University Of Reading,483344,1000,200012659
BEIS,Met Office,2023-09-07,13 MISCELLANEOUS,SCIENCE,University Of Reading,483398,1000,200012659
BEIS,Met Office,2023-09-11,13 MISCELLANEOUS,SCIENCE,University Of Reading,483425,1000,200012659
BEIS,Met Office,2023-09-06,11 SERVICES,SERVICES,ADAM PHONES LTD,483330,88.35,538877093
BEIS,Met Office,2023-09-11,11 SERVICES,SERVICES,AFBI,483456,50,252677738
BEIS,Met Office,2023-09-11,STOCK,SERVICES,AIMER PRODUCTS LTD,483304,0,232175685
BEIS,Met Office,2023-09-11,11 SERVICES,SERVICES,AIMER PRODUCTS LTD,483304,20,232175685
BEIS,Met Office,2023-09-11,TRADE CREDITORS,SERVICES,AIMER PRODUCTS LTD,483304,4000,232175685
BEIS,Met Office,2023-09-19,03 STAFF COSTS T&S,SERVICES,AIRPORT CAR RENTALS LTD,483726,320,-
BEIS,Met Office,2023-09-11,11 SERVICES,SERVICES,APPLIED SATELLITE TECHNOLOGY SYSTEMS LTD,483353,33.01,720108683
BEIS,Met Office,2023-09-07,11 SERVICES,SERVICES,APPLIED SATELLITE TECHNOLOGY SYSTEMS LTD,483354,33.01,720108683
BEIS,Met Office,2023-09-07,11 SERVICES,SERVICES,APPLIED SATELLITE TECHNOLOGY SYSTEMS LTD,483349,66.02,720108683
BEIS,Met Office,2023-09-07,11 SERVICES,SERVICES,APPLIED SATELLITE TECHNOLOGY SYSTEMS LTD,483350,132.32,720108683
BEIS,Met Office,2023-09-11,11 SERVICES,SERVICES,APPLIED SATELLITE TECHNOLOGY SYSTEMS LTD,483351,366.13,720108683
BEIS,Met Office,2023-09-07,11 SERVICES,SERVICES,APPLIED SATELLITE TECHNOLOGY SYSTEMS LTD,483352,474.88,720108683
BEIS,Met Office,2023-09-07,11 SERVICES,SERVICES,APPLIED SATELLITE TECHNOLOGY SYSTEMS LTD,483356,1176.4,720108683
BEIS,Met Office,2023-09-11,11 SERVICES,SERVICES,APPLIED SATELLITE TECHNOLOGY SYSTEMS LTD,483403,3423.07,720108683
BEIS,Met Office,2023-09-12,11 SERVICES,SERVICES,APPLIED SATELLITE TECHNOLOGY SYSTEMS LTD,483404,7579.15,720108683
BEIS,Met Office,2023-09-27,03 STAFF COSTS T&S,SERVICES,AVIS BUDGET PAYLESS,25165,458.38,-
BEIS,Met Office,2023-09-27,03 STAFF COSTS T&S,SERVICES,AVIS BUDGET PAYLESS,25166,458.38,-
BEIS,Met Office,2023-09-20,08 SOFTWARE LICENCES,SERVICES,BARRIER NETWORKS LTD,483785,3800,GB135643417
BEIS,Met Office,2023-09-25,11 SERVICES,SERVICES,BENTLEY TELECOM LTD (was Bentley Walker),483894,62.5,107995930
BEIS,Met Office,2023-09-11,11 SERVICES,SERVICES,BENTLEY TELECOM LTD (was Bentley Walker),483395,525,107995930
BEIS,Met Office,2023-09-19,11 SERVICES,SERVICES,Boc Ltd,483262,23785.61,226556555
BEIS,Met Office,2023-09-18,STOCK,SERVICES,Campbell Scientific Ltd,483655,0,428453933
BEIS,Met Office,2023-09-18,STOCK,SERVICES,Campbell Scientific Ltd,483655,0,428453933
BEIS,Met Office,2023-09-18,STOCK,SERVICES,Campbell Scientific Ltd,483655,0,428453933
BEIS,Met Office,2023-09-18,STOCK,SERVICES,Campbell Scientific Ltd,483655,0,428453933
BEIS,Met Office,2023-09-18,11 SERVICES,SERVICES,Campbell Scientific Ltd,483655,60,428453933
BEIS,Met Office,2023-09-18,TRADE CREDITORS,SERVICES,Campbell Scientific Ltd,483655,72,428453933
BEIS,Met Office,2023-09-18,TRADE CREDITORS,SERVICES,Campbell Scientific Ltd,483655,477,428453933
BEIS,Met Office,2023-09-18,TRADE CREDITORS,SERVICES,Campbell Scientific Ltd,483655,561.6,428453933
BEIS,Met Office,2023-09-18,TRADE CREDITORS,SERVICES,Campbell Scientific Ltd,483655,839.7,428453933
BEIS,Met Office,2023-09-04,03 STAFF COSTS T&S,SERVICES,CHARLIE'S TRAVEL LTD,483225,651.63,783848277
BEIS,Met Office,2023-09-05,08 SOFTWARE LICENCES,SERVICES,CIVICA UK LIMITED,483214,11381.25,391171065
BEIS,Met Office,2023-09-20,08 SOFTWARE LICENCES,SERVICES,CIVICA UK LIMITED,483717,11381.25,391171065
BEIS,Met Office,2023-09-12,11 SERVICES,SERVICES,CLOUDREACH EUROPE LIMITED,483474,7300,978187168
BEIS,Met Office,2023-09-19,13 MISCELLANEOUS,SERVICES,DBS FINANCE RECEIPTS CTS,483691,30,888805068
BEIS,Met Office,2023-09-27,13 MISCELLANEOUS,SERVICES,DEMSTAR BUSINESS SOLUTIONS LTD,25172,92.63,10156145J
BEIS,Met Office,2023-09-20,11 SERVICES,SERVICES,DRIVE CREATIVE STUDIO LTD,482835,40,167656860
BEIS,Met Office,2023-09-05,STOCK,SERVICES,Environmental Measurements Ltd,483166,0,348513154
BEIS,Met Office,2023-09-05,STOCK,SERVICES,Environmental Measurements Ltd,483166,0,348513154
BEIS,Met Office,2023-09-05,STOCK,SERVICES,Environmental Measurements Ltd,483166,0,348513154
BEIS,Met Office,2023-09-05,STOCK,SERVICES,Environmental Measurements Ltd,483166,0,348513154
BEIS,Met Office,2023-09-05,11 SERVICES,SERVICES,Environmental Measurements Ltd,483166,20,348513154
BEIS,Met Office,2023-09-05,TRADE CREDITORS,SERVICES,Environmental Measurements Ltd,483166,25.2,348513154
BEIS,Met Office,2023-09-05,TRADE CREDITORS,SERVICES,Environmental Measurements Ltd,483166,56.7,348513154
BEIS,Met Office,2023-09-05,TRADE CREDITORS,SERVICES,Environmental Measurements Ltd,483166,144,348513154
BEIS,Met Office,2023-09-05,TRADE CREDITORS,SERVICES,Environmental Measurements Ltd,483166,1224,348513154
BEIS,Met Office,2023-09-01,13 MISCELLANEOUS,SERVICES,EQUINOX INSTRUMENTS LTD,483144,0.01,865954274
BEIS,Met Office,2023-09-01,10 EQUIPMENT MAINTENANCE,SERVICES,EQUINOX INSTRUMENTS LTD,483144,201.99,865954274
BEIS,Met Office,2023-09-01,10 EQUIPMENT MAINTENANCE,SERVICES,EQUINOX INSTRUMENTS LTD,483144,211,865954274
BEIS,Met Office,2023-09-01,10 EQUIPMENT MAINTENANCE,SERVICES,EQUINOX INSTRUMENTS LTD,483144,1096,865954274
BEIS,Met Office,2023-09-20,11 SERVICES,SERVICES,ESCOTT HUNT LTD,483748,237.5,815727127
BEIS,Met Office,2023-09-20,11 SERVICES,SERVICES,ESCOTT HUNT LTD,483748,237.5,815727127
BEIS,Met Office,2023-09-06,03 STAFF COSTS T&S,SERVICES,FALKLAND ISLAND COMPANY LTD,483306,700,N/A
BEIS,Met Office,2023-09-06,03 STAFF COSTS T&S,SERVICES,FALKLAND ISLAND COMPANY LTD,483307,700,N/A
BEIS,Met Office,2023-09-18,03 STAFF COSTS T&S,SERVICES,FALKLAND ISLAND COMPANY LTD,483675,700,N/A
BEIS,Met Office,2023-09-15,11 SERVICES,SERVICES,GAMMA TELECOM LTD,483518,5011.62,823820344
BEIS,Met Office,2023-09-25,03 STAFF COSTS T&S,SERVICES,HCR LTD,483873,285,733 7205 46
BEIS,Met Office,2023-09-25,03 STAFF COSTS T&S,SERVICES,HCR LTD,483874,330,733 7205 46
BEIS,Met Office,2023-09-25,03 STAFF COSTS T&S,SERVICES,HCR LTD,483876,453.71,733 7205 46
BEIS,Met Office,2023-09-25,03 STAFF COSTS T&S,SERVICES,HCR LTD,483877,688.4,733 7205 46
BEIS,Met Office,2023-09-25,03 STAFF COSTS T&S,SERVICES,HCR LTD,483875,770,733 7205 46
BEIS,Met Office,2023-09-04,11 SERVICES,SERVICES,HITACHI CAPITAL VEHICLE SOLUTIONS,483228,2090.76,GB 823 8248 22
BEIS,Met Office,2023-09-19,13 MISCELLANEOUS,SERVICES,IMAGETEK SYSTEMS LTD,483716,264.15,GB586331424
BEIS,Met Office,2023-09-11,11 SERVICES,SERVICES,INMARSAT SOLUTIONS (CANADA) INC,483258,43.55,766144223
BEIS,Met Office,2023-09-11,11 SERVICES,SERVICES,INMARSAT SOLUTIONS (CANADA) INC,483261,43.55,766144223
BEIS,Met Office,2023-09-11,11 SERVICES,SERVICES,INMARSAT SOLUTIONS (CANADA) INC,483257,87.1,766144223
BEIS,Met Office,2023-09-21,03 STAFF COSTS T&S,SERVICES,LINCOLN POLYTHENE / HOBSON HOLDINGS,483758,270,267249279
BEIS,Met Office,2023-09-11,11 SERVICES,SERVICES,MADE TECH,483427,46600,938565184
BEIS,Met Office,2023-09-11,11 SERVICES,SERVICES,MADE TECH,483428,238012.5,938565184
BEIS,Met Office,2023-09-18,08 SOFTWARE LICENCES,SERVICES,MERKLE ONE,483663,3685,GB478022835
BEIS,Met Office,2023-09-18,08 SOFTWARE LICENCES,SERVICES,MERKLE ONE,483663,4630,GB478022835
BEIS,Met Office,2023-09-27,07 EQUIPMENT,SERVICES,METOCEAN TELEMATICS LTD,11200,79.81,-
BEIS,Met Office,2023-09-13,11 SERVICES,SERVICES,NSSL GLOBAL LTD,11181,55.15,725151948
BEIS,Met Office,2023-09-13,11 SERVICES,SERVICES,NSSL GLOBAL LTD,11180,70.91,725151948
BEIS,Met Office,2023-09-06,STOCK,SERVICES,PAWAN EXPORTS,482032,0,N/A
BEIS,Met Office,2023-09-06,STOCK,SERVICES,PAWAN EXPORTS,482032,0,N/A
BEIS,Met Office,2023-09-06,11 SERVICES,SERVICES,PAWAN EXPORTS,482032,1790,N/A
BEIS,Met Office,2023-09-06,TRADE CREDITORS,SERVICES,PAWAN EXPORTS,482032,5100,N/A
BEIS,Met Office,2023-09-06,TRADE CREDITORS,SERVICES,PAWAN EXPORTS,482032,5950,N/A
BEIS,Met Office,2023-09-12,STOCK,SERVICES,PETERS & MAY GLOBAL LOGISTICS LTD,483149,75,995183276
BEIS,Met Office,2023-09-27,10 EQUIPMENT MAINTENANCE,SERVICES,RAISE TELECOMS LTD,483860,21963,166016521
BEIS,Met Office,2023-09-27,10 EQUIPMENT MAINTENANCE,SERVICES,RAISE TELECOMS LTD,483861,21963,166016521
BEIS,Met Office,2023-09-27,10 EQUIPMENT MAINTENANCE,SERVICES,RAISE TELECOMS LTD,483862,36086.95,166016521
BEIS,Met Office,2023-09-27,STOCK,SERVICES,SCIENCE PUMP CORPORATION,11192,0,NOVAT
BEIS,Met Office,2023-09-27,TRADE CREDITORS,SERVICES,SCIENCE PUMP CORPORATION,11192,4088.3,NOVAT
BEIS,Met Office,2023-09-05,11 SERVICES,SERVICES,SOFTWIRE TECHNOLOGY LIMITED,483226,4200,752 1253 57
BEIS,Met Office,2023-09-19,03 STAFF COSTS T&S,SERVICES,STORAGE FACTORY,483710,185,130 5237 12
BEIS,Met Office,2023-09-20,10 EQUIPMENT MAINTENANCE,SERVICES,TRESCAL,483699,270,GB 115 1045 67
BEIS,Met Office,2023-09-20,10 EQUIPMENT MAINTENANCE,SERVICES,TRESCAL,483698,298.85,GB 115 1045 67
BEIS,Met Office,2023-09-13,STOCK,SERVICES,VAISALA LTD,25162,0,336100011
BEIS,Met Office,2023-09-13,STOCK,SERVICES,VAISALA LTD,25162,0,336100011
BEIS,Met Office,2023-09-13,STOCK,SERVICES,VAISALA LTD,25162,0,336100011
BEIS,Met Office,2023-09-27,STOCK,SERVICES,VAISALA LTD,25171,0,336100011
BEIS,Met Office,2023-09-13,11 SERVICES,SERVICES,VAISALA LTD,25162,1639.17,336100011
BEIS,Met Office,2023-09-27,11 SERVICES,SERVICES,VAISALA LTD,25171,1801.5,336100011
BEIS,Met Office,2023-09-13,TRADE CREDITORS,SERVICES,VAISALA LTD,25162,3571.67,336100011
BEIS,Met Office,2023-09-13,TRADE CREDITORS,SERVICES,VAISALA LTD,25162,4606.94,336100011
BEIS,Met Office,2023-09-13,TRADE CREDITORS,SERVICES,VAISALA LTD,25162,19497.52,336100011
BEIS,Met Office,2023-09-27,TRADE CREDITORS,SERVICES,VAISALA LTD,25171,81427.61,336100011
BEIS,Met Office,2023-09-13,10 EQUIPMENT MAINTENANCE,SERVICES,Vaisala Oyj,25154,9502.72,FI01244162
BEIS,Met Office,2023-09-28,11 SERVICES,SERVICES,VOLKSWAGEN GROUP LEASING,483981,131.05,BG745963883
BEIS,Met Office,2023-09-28,11 SERVICES,SERVICES,VOLKSWAGEN GROUP LEASING,484013,134.61,BG745963883
BEIS,Met Office,2023-09-28,11 SERVICES,SERVICES,VOLKSWAGEN GROUP LEASING,483982,134.77,BG745963883
BEIS,Met Office,2023-09-27,11 SERVICES,SERVICES,VOLKSWAGEN GROUP LEASING,483977,155.15,BG745963883
BEIS,Met Office,2023-09-28,11 SERVICES,SERVICES,VOLKSWAGEN GROUP LEASING,483988,160.02,BG745963883
BEIS,Met Office,2023-09-28,11 SERVICES,SERVICES,VOLKSWAGEN GROUP LEASING,483980,195.57,BG745963883
BEIS,Met Office,2023-09-28,11 SERVICES,SERVICES,VOLKSWAGEN GROUP LEASING,483983,199.82,BG745963883
BEIS,Met Office,2023-09-28,11 SERVICES,SERVICES,VOLKSWAGEN GROUP LEASING,483986,213.27,BG745963883
BEIS,Met Office,2023-09-28,11 SERVICES,SERVICES,VOLKSWAGEN GROUP LEASING,483978,230.85,BG745963883
BEIS,Met Office,2023-09-28,11 SERVICES,SERVICES,VOLKSWAGEN GROUP LEASING,483989,248.12,BG745963883
BEIS,Met Office,2023-09-01,11 SERVICES,SERVICES,VOLKSWAGEN GROUP LEASING,483086,260.26,BG745963883
BEIS,Met Office,2023-09-28,11 SERVICES,SERVICES,VOLKSWAGEN GROUP LEASING,483987,260.26,BG745963883
BEIS,Met Office,2023-09-28,11 SERVICES,SERVICES,VOLKSWAGEN GROUP LEASING,483985,260.65,BG745963883
BEIS,Met Office,2023-09-06,11 SERVICES,SERVICES,VOLKSWAGEN GROUP LEASING,482132,289.9,BG745963883
BEIS,Met Office,2023-09-28,11 SERVICES,SERVICES,VOLKSWAGEN GROUP LEASING,483979,289.9,BG745963883
BEIS,Met Office,2023-09-28,11 SERVICES,SERVICES,VOLKSWAGEN GROUP LEASING,483984,290.06,BG745963883
BEIS,Met Office,2023-09-07,11 SERVICES,TECHNOLOGY AND CIO,AKAMAI TECHNOLOGIES LTD,483393,4937.28,745091237
BEIS,Met Office,2023-09-07,11 SERVICES,TECHNOLOGY AND CIO,AKAMAI TECHNOLOGIES LTD,483393,25920.75,745091237
BEIS,Met Office,2023-09-13,11 SERVICES,TECHNOLOGY AND CIO,AMAZON WEB SERVICES EMEA SARL,11197,552.24,GB 283644382
BEIS,Met Office,2023-09-13,11 SERVICES,TECHNOLOGY AND CIO,AMAZON WEB SERVICES EMEA SARL,11196,1613.18,GB 283644382
BEIS,Met Office,2023-09-13,11 SERVICES,TECHNOLOGY AND CIO,AMAZON WEB SERVICES EMEA SARL,11198,27942.99,GB 283644382
BEIS,Met Office,2023-09-13,11 SERVICES,TECHNOLOGY AND CIO,AMAZON WEB SERVICES EMEA SARL,11195,309516.25,GB 283644382
BEIS,Met Office,2023-09-20,11 SERVICES,TECHNOLOGY AND CIO,BAE SYSTEMS APPLIED INTELLIGENCE LIMITED,483751,1861.77,GB641407169
BEIS,Met Office,2023-09-15,11 SERVICES,TECHNOLOGY AND CIO,BAE SYSTEMS APPLIED INTELLIGENCE LIMITED,483586,2475,GB641407169
BEIS,Met Office,2023-09-26,11 SERVICES,TECHNOLOGY AND CIO,BAE SYSTEMS APPLIED INTELLIGENCE LIMITED,483841,4183,GB641407169
BEIS,Met Office,2023-09-15,11 SERVICES,TECHNOLOGY AND CIO,BAE SYSTEMS APPLIED INTELLIGENCE LIMITED,483573,5850,GB641407169
BEIS,Met Office,2023-09-20,11 SERVICES,TECHNOLOGY AND CIO,BAE SYSTEMS APPLIED INTELLIGENCE LIMITED,483787,6096.59,GB641407169
BEIS,Met Office,2023-09-15,11 SERVICES,TECHNOLOGY AND CIO,BAE SYSTEMS APPLIED INTELLIGENCE LIMITED,483592,6637.5,GB641407169
BEIS,Met Office,2023-09-15,11 SERVICES,TECHNOLOGY AND CIO,BAE SYSTEMS APPLIED INTELLIGENCE LIMITED,483579,7035,GB641407169
BEIS,Met Office,2023-09-06,11 SERVICES,TECHNOLOGY AND CIO,BAE SYSTEMS APPLIED INTELLIGENCE LIMITED,483279,7260,GB641407169
BEIS,Met Office,2023-09-15,11 SERVICES,TECHNOLOGY AND CIO,BAE SYSTEMS APPLIED INTELLIGENCE LIMITED,483572,8325,GB641407169
BEIS,Met Office,2023-09-15,11 SERVICES,TECHNOLOGY AND CIO,BAE SYSTEMS APPLIED INTELLIGENCE LIMITED,483571,8887.5,GB641407169
BEIS,Met Office,2023-09-15,11 SERVICES,TECHNOLOGY AND CIO,BAE SYSTEMS APPLIED INTELLIGENCE LIMITED,483570,9000,GB641407169
BEIS,Met Office,2023-09-15,11 SERVICES,TECHNOLOGY AND CIO,BAE SYSTEMS APPLIED INTELLIGENCE LIMITED,483574,9000,GB641407169
BEIS,Met Office,2023-09-15,11 SERVICES,TECHNOLOGY AND CIO,BAE SYSTEMS APPLIED INTELLIGENCE LIMITED,483580,9602.75,GB641407169
BEIS,Met Office,2023-09-20,11 SERVICES,TECHNOLOGY AND CIO,BAE SYSTEMS APPLIED INTELLIGENCE LIMITED,483682,9738,GB641407169
BEIS,Met Office,2023-09-15,11 SERVICES,TECHNOLOGY AND CIO,BAE SYSTEMS APPLIED INTELLIGENCE LIMITED,483577,10477.5,GB641407169
BEIS,Met Office,2023-09-15,11 SERVICES,TECHNOLOGY AND CIO,BAE SYSTEMS APPLIED INTELLIGENCE LIMITED,483568,10820,GB641407169
BEIS,Met Office,2023-09-15,11 SERVICES,TECHNOLOGY AND CIO,BAE SYSTEMS APPLIED INTELLIGENCE LIMITED,483576,11385,GB641407169
BEIS,Met Office,2023-09-15,11 SERVICES,TECHNOLOGY AND CIO,BAE SYSTEMS APPLIED INTELLIGENCE LIMITED,483277,11879.88,GB641407169
BEIS,Met Office,2023-09-06,11 SERVICES,TECHNOLOGY AND CIO,BAE SYSTEMS APPLIED INTELLIGENCE LIMITED,483278,11880,GB641407169
BEIS,Met Office,2023-09-20,11 SERVICES,TECHNOLOGY AND CIO,BAE SYSTEMS APPLIED INTELLIGENCE LIMITED,483683,12193.18,GB641407169
BEIS,Met Office,2023-09-15,11 SERVICES,TECHNOLOGY AND CIO,BAE SYSTEMS APPLIED INTELLIGENCE LIMITED,483584,12210,GB641407169
BEIS,Met Office,2023-09-18,11 SERVICES,TECHNOLOGY AND CIO,BAE SYSTEMS APPLIED INTELLIGENCE LIMITED,483615,12539.87,GB641407169
BEIS,Met Office,2023-09-15,11 SERVICES,TECHNOLOGY AND CIO,BAE SYSTEMS APPLIED INTELLIGENCE LIMITED,483575,12540,GB641407169
BEIS,Met Office,2023-09-15,11 SERVICES,TECHNOLOGY AND CIO,BAE SYSTEMS APPLIED INTELLIGENCE LIMITED,483588,12540,GB641407169
BEIS,Met Office,2023-09-15,11 SERVICES,TECHNOLOGY AND CIO,BAE SYSTEMS APPLIED INTELLIGENCE LIMITED,483585,13200,GB641407169
BEIS,Met Office,2023-09-15,11 SERVICES,TECHNOLOGY AND CIO,BAE SYSTEMS APPLIED INTELLIGENCE LIMITED,483590,13200,GB641407169
BEIS,Met Office,2023-09-20,11 SERVICES,TECHNOLOGY AND CIO,BAE SYSTEMS APPLIED INTELLIGENCE LIMITED,483786,13200,GB641407169
BEIS,Met Office,2023-09-26,11 SERVICES,TECHNOLOGY AND CIO,BAE SYSTEMS APPLIED INTELLIGENCE LIMITED,483841,13639,GB641407169
BEIS,Met Office,2023-09-15,11 SERVICES,TECHNOLOGY AND CIO,BAE SYSTEMS APPLIED INTELLIGENCE LIMITED,483581,14070,GB641407169
BEIS,Met Office,2023-09-15,11 SERVICES,TECHNOLOGY AND CIO,BAE SYSTEMS APPLIED INTELLIGENCE LIMITED,483569,15946,GB641407169
BEIS,Met Office,2023-09-15,11 SERVICES,TECHNOLOGY AND CIO,BAE SYSTEMS APPLIED INTELLIGENCE LIMITED,483583,15946,GB641407169
BEIS,Met Office,2023-09-15,11 SERVICES,TECHNOLOGY AND CIO,BAE SYSTEMS APPLIED INTELLIGENCE LIMITED,483589,15946,GB641407169
BEIS,Met Office,2023-09-15,11 SERVICES,TECHNOLOGY AND CIO,BAE SYSTEMS APPLIED INTELLIGENCE LIMITED,483591,17000,GB641407169
BEIS,Met Office,2023-09-15,11 SERVICES,TECHNOLOGY AND CIO,BAE SYSTEMS APPLIED INTELLIGENCE LIMITED,483582,17001.25,GB641407169
BEIS,Met Office,2023-09-18,11 SERVICES,TECHNOLOGY AND CIO,BJSS LIMITED,483606,13125,613295452
BEIS,Met Office,2023-09-15,11 SERVICES,TECHNOLOGY AND CIO,BJSS LIMITED,483611,92094,613295452
BEIS,Met Office,2023-09-27,08 SOFTWARE LICENCES,TECHNOLOGY AND CIO,BROWSERSTACK INC,11223,20190.81,-
BEIS,Met Office,2023-09-14,COMPUTER SOFTWARE,TECHNOLOGY AND CIO,CAE,483624,47921.2,GB836637989
BEIS,Met Office,2023-09-15,11 SERVICES,TECHNOLOGY AND CIO,CLOUDREACH EUROPE LIMITED,483619,3487.36,978187168
BEIS,Met Office,2023-09-12,11 SERVICES,TECHNOLOGY AND CIO,CLOUDREACH EUROPE LIMITED,483473,5150,978187168
BEIS,Met Office,2023-09-04,07 EQUIPMENT,TECHNOLOGY AND CIO,COMPUTACENTER (UK) LTD,483203,15.61,490334648
BEIS,Met Office,2023-09-25,07 EQUIPMENT,TECHNOLOGY AND CIO,COMPUTACENTER (UK) LTD,483850,407.54,490334648
BEIS,Met Office,2023-09-01,10 EQUIPMENT MAINTENANCE,TECHNOLOGY AND CIO,COMPUTACENTER (UK) LTD,483158,2275.16,490334648
BEIS,Met Office,2023-09-29,07 EQUIPMENT,TECHNOLOGY AND CIO,COMPUTACENTER (UK) LTD,484043,2715.46,490334648
BEIS,Met Office,2023-09-28,10 EQUIPMENT MAINTENANCE,TECHNOLOGY AND CIO,COMPUTACENTER (UK) LTD,483996,3286.34,490334648
BEIS,Met Office,2023-09-19,08 SOFTWARE LICENCES,TECHNOLOGY AND CIO,COMPUTACENTER (UK) LTD,483684,3350,490334648
BEIS,Met Office,2023-09-04,11 SERVICES,TECHNOLOGY AND CIO,COMPUTACENTER (UK) LTD,483202,3836.36,490334648
BEIS,Met Office,2023-09-28,07 EQUIPMENT,TECHNOLOGY AND CIO,COMPUTACENTER (UK) LTD,483950,4345.74,490334648
BEIS,Met Office,2023-09-15,07 EQUIPMENT,TECHNOLOGY AND CIO,COMPUTACENTER (UK) LTD,483614,5127.75,490334648
BEIS,Met Office,2023-09-14,07 EQUIPMENT,TECHNOLOGY AND CIO,COMPUTACENTER (UK) LTD,483468,5634,490334648
BEIS,Met Office,2023-09-20,INFORMATION TECHNOLOGY,TECHNOLOGY AND CIO,COMPUTACENTER (UK) LTD,483715,12479.75,490334648
BEIS,Met Office,2023-09-14,INFORMATION TECHNOLOGY,TECHNOLOGY AND CIO,COMPUTACENTER (UK) LTD,483469,14642.34,490334648
BEIS,Met Office,2023-09-20,INFORMATION TECHNOLOGY,TECHNOLOGY AND CIO,COMPUTACENTER (UK) LTD,483713,30554.8,490334648
BEIS,Met Office,2023-09-20,INFORMATION TECHNOLOGY,TECHNOLOGY AND CIO,COMPUTACENTER (UK) LTD,483714,76387,490334648
BEIS,Met Office,2023-09-18,INFORMATION TECHNOLOGY,TECHNOLOGY AND CIO,COMPUTACENTER (UK) LTD,483658,366657.6,490334648
BEIS,Met Office,2023-09-19,08 SOFTWARE LICENCES,TECHNOLOGY AND CIO,GOOGLE IRELAND LTD,483745,42.6,6388047V
BEIS,Met Office,2023-09-05,08 SOFTWARE LICENCES,TECHNOLOGY AND CIO,Ibm United Kingdom Ltd,483263,7726.6,107328000
BEIS,Met Office,2023-09-04,11 SERVICES,TECHNOLOGY AND CIO,Ibm United Kingdom Ltd,483206,13440.5,107328000
BEIS,Met Office,2023-09-06,10 EQUIPMENT MAINTENANCE,TECHNOLOGY AND CIO,Ibm United Kingdom Ltd,483316,72766.68,107328000
BEIS,Met Office,2023-09-29,11 SERVICES,TECHNOLOGY AND CIO,LAFOSSE ASSOCIATES,484005,19328.4,GB 360026537
BEIS,Met Office,2023-09-11,10 EQUIPMENT MAINTENANCE,TECHNOLOGY AND CIO,ORACLE CORPORATION UK LTD,483478,341.52,391313073
BEIS,Met Office,2023-09-15,10 EQUIPMENT MAINTENANCE,TECHNOLOGY AND CIO,ORACLE CORPORATION UK LTD,483662,10050.05,391313073
BEIS,Met Office,2023-09-13,08 SOFTWARE LICENCES,TECHNOLOGY AND CIO,PRESENTATION CARTOGRAPHY LTD,483578,268.58,-
BEIS,Met Office,2023-09-13,08 SOFTWARE LICENCES,TECHNOLOGY AND CIO,PRESENTATION CARTOGRAPHY LTD,483578,1074.32,-
BEIS,Met Office,2023-09-25,11 SERVICES,TECHNOLOGY AND CIO,QA LTD,483305,-55.82,864455303
BEIS,Met Office,2023-09-25,11 SERVICES,TECHNOLOGY AND CIO,QA LTD,483165,55.82,864455303
BEIS,Met Office,2023-09-27,11 SERVICES,TECHNOLOGY AND CIO,QA LTD,483530,4430,864455303
BEIS,Met Office,2023-09-27,11 SERVICES,TECHNOLOGY AND CIO,QA LTD,483531,4800,864455303
BEIS,Met Office,2023-09-14,11 SERVICES,TECHNOLOGY AND CIO,QA LTD,483525,5400,864455303
BEIS,Met Office,2023-09-05,11 SERVICES,TECHNOLOGY AND CIO,QA LTD,481823,5610,864455303
BEIS,Met Office,2023-09-14,11 SERVICES,TECHNOLOGY AND CIO,QA LTD,483527,6600,864455303
BEIS,Met Office,2023-09-27,11 SERVICES,TECHNOLOGY AND CIO,QA LTD,483528,9000,864455303
BEIS,Met Office,2023-09-13,11 SERVICES,TECHNOLOGY AND CIO,QA LTD,483523,10200,864455303
BEIS,Met Office,2023-09-05,11 SERVICES,TECHNOLOGY AND CIO,QA LTD,482990,10800,864455303
BEIS,Met Office,2023-09-05,11 SERVICES,TECHNOLOGY AND CIO,QA LTD,481825,11700,864455303
BEIS,Met Office,2023-09-27,11 SERVICES,TECHNOLOGY AND CIO,QA LTD,483529,13200,864455303
BEIS,Met Office,2023-09-19,11 SERVICES,TECHNOLOGY AND CIO,QA LTD,483526,19200,864455303
BEIS,Met Office,2023-09-05,11 SERVICES,TECHNOLOGY AND CIO,QA LTD,482895,29220,864455303
BEIS,Met Office,2023-09-27,11 SERVICES,TECHNOLOGY AND CIO,QA LTD,483524,29640,864455303
BEIS,Met Office,2023-09-01,11 SERVICES,TECHNOLOGY AND CIO,RISUAL LIMITED,483177,7240,864480893
BEIS,Met Office,2023-09-13,08 SOFTWARE LICENCES,TECHNOLOGY AND CIO,SOFTCAT LTD,483472,1625.15,491848503
BEIS,Met Office,2023-09-13,08 SOFTWARE LICENCES,TECHNOLOGY AND CIO,SPECIALIST COMPUTER CENTRES,482466,8209.56,313651680
BEIS,Met Office,2023-09-21,11 SERVICES,TECHNOLOGY AND CIO,SPECIALIST COMPUTER CENTRES,483815,23220.54,313651680
BEIS,Met Office,2023-09-04,11 SERVICES,TECHNOLOGY AND CIO,SPECIALIST COMPUTER CENTRES,483200,24913.84,313651680
BEIS,Met Office,2023-09-13,10 EQUIPMENT MAINTENANCE,TECHNOLOGY AND CIO,SPECIALIST COMPUTER CENTRES,482466,31647.28,313651680
BEIS,Met Office,2023-09-13,10 EQUIPMENT MAINTENANCE,TECHNOLOGY AND CIO,SPECIALIST COMPUTER CENTRES,482466,54331.72,313651680
BEIS,Met Office,2023-09-20,11 SERVICES,TECHNOLOGY AND CIO,SSE CONTRACTING LTD,483696,10111.39,382894546
BEIS,Met Office,2023-09-04,11 SERVICES,TECHNOLOGY AND CIO,WIREFAST LTD,483217,303.72,749536001
BEIS,Met Office,2023-09-04,11 SERVICES,TECHNOLOGY AND CIO,WIREFAST LTD,483216,1658.16,749536001
BEIS,Met Office,2023-09-04,11 SERVICES,TECHNOLOGY AND CIO,WIREFAST LTD,483215,1872.02,749536001
BEIS,Met Office,2023-09-07,11 SERVICES,TECHNOLOGY AND CIO,WT CONSULTANCY (SW) LTD,482348,341.67,223 4662 25
BEIS,Met Office,2023-09-11,11 SERVICES,TECHNOLOGY AND CIO,WT CONSULTANCY (SW) LTD,483220,700,223 4662 25
BEIS,Met Office,,,,,,,
BEIS,Met Office,,,,,,,
BEIS,Met Office,,,,,,,
BEIS,Met Office,,,,,,,
BEIS,Met Office,,,,,,,
BEIS,Met Office,,,,,,,
BEIS,Met Office,,,,,,,
BEIS,Met Office,,,,,,,
BEIS,Met Office,,,,,,,
BEIS,Met Office,,,,,,,
BEIS,Met Office,,,,,,,
BEIS,Met Office,,,,,,,
BEIS,Met Office,,,,,,,
BEIS,Met Office,,,,,,,
BEIS,Met Office,,,,,,,
BEIS,Met Office,,,,,,,
BEIS,Met Office,,,,,,,
BEIS,Met Office,,,,,,,
BEIS,Met Office,,,,,,,
BEIS,Met Office,,,,,,,
BEIS,Met Office,,,,,,,
BEIS,Met Office,,,,,,,
BEIS,Met Office,,,,,,,
BEIS,Met Office,,,,,,,
BEIS,Met Office,,,,,,,
BEIS,Met Office,,,,,,,
BEIS,Met Office,,,,,,,
BEIS,Met Office,,,,,,,
BEIS,Met Office,,,,,,,
BEIS,Met Office,,,,,,,
BEIS,Met Office,,,,,,,
BEIS,Met Office,,,,,,,
BEIS,Met Office,,,,,,,
BEIS,Met Office,,,,,,,
BEIS,Met Office,,,,,,,
BEIS,Met Office,,,,,,,
BEIS,Met Office,,,,,,,
BEIS,Met Office,,,,,,,
BEIS,Met Office,,,,,,,
BEIS,Met Office,,,,,,,
BEIS,Met Office,,,,,,,
BEIS,Met Office,,,,,,,
BEIS,Met Office,,,,,,,
BEIS,Met Office,,,,,,,
BEIS,Met Office,,,,,,,
BEIS,Met Office,,,,,,,
BEIS,Met Office,,,,,,,
BEIS,Met Office,,,,,,,
BEIS,Met Office,,,,,,,
BEIS,Met Office,,,,,,,
BEIS,Met Office,,,,,,,
BEIS,Met Office,,,,,,,
BEIS,Met Office,,,,,,,
BEIS,Met Office,,,,,,,
BEIS,Met Office,,,,,,,
BEIS,Met Office,,,,,,,
BEIS,Met Office,,,,,,,
BEIS,Met Office,,,,,,,
BEIS,Met Office,,,,,,,
BEIS,Met Office,,,,,,,
BEIS,Met Office,,,,,,,
BEIS,Met Office,,,,,,,
BEIS,Met Office,,,,,,,
BEIS,Met Office,,,,,,,
BEIS,Met Office,,,,,,,
BEIS,Met Office,,,,,,,
BEIS,Met Office,,,,,,,
BEIS,Met Office,,,,,,,
BEIS,Met Office,,,,,,,
BEIS,Met Office,,,,,,,
BEIS,Met Office,,,,,,,
